bitfinex/quotes_SOLUSD_20250508
["timestamp","ask_amount","ask_price","bid_price","bid_amount"]
[1746717817661,34.82751566,158.7,158.63,0.14216157]
[1746717817844,31.6,158.7,158.63,0.14216157]
[1746717818045,31.6,158.7,158.63,44.79181043]
[1746717818538,31.6,158.7,158.67,26.0]
[1746717819851,20.4254224,158.72,158.67,26.0]
[1746717820561,20.4254224,158.72,158.68,6.30199142]
[1746717821338,20.4254224,158.72,158.71,26.0]
[1746717821558,1.5251,158.76,158.71,26.0]
[1746717821867,6.0361,158.77,158.71,26.0]
[1746717822529,30.76,158.79,158.72,32.30040322]
[1746717822974,30.76,158.79,158.72,48.05141128]
[1746717823337,30.76,158.79,158.72,22.05141128]
[1746717823745,30.76,158.79,158.73,0.14216157]
[1746717824072,30.76,158.79,158.77,0.14216157]
[1746717824271,236.24,158.84,158.77,0.14216157]
[1746717824571,236.24,158.84,158.77,6.29841909]
[1746717824868,32.3297,158.86,158.8,26.0]
[1746717825368,7.86788779,158.89,158.8,26.0]
[1746717825731,1.57393028,158.89,158.81,26.0]
[1746717825939,1.57373255,158.9,158.81,26.0]
[1746717826140,30.74,158.91,158.85,26.0]
[1746717826643,30.74,158.91,158.86,6.29485081]
[1746717827068,37.03288113,158.91,158.85,26.0]
[1746717827269,1.57342914,158.9,158.85,32.29519971]
[1746717827437,37.02959185,158.9,158.85,32.29519971]
[1746717827636,38.6068866,158.91,158.85,32.29519971]
[1746717827864,38.6068866,158.91,158.8,0.14216157]
[1746717827865,37.02959185,158.88,158.8,0.14216157]
[1746717828071,18.64964886,158.9,158.82,26.0]
[1746717828072,38.60346522,158.89,158.82,26.0]
[1746717828268,1.57387337,158.89,158.82,26.0]
[1746717828440,37.02959185,158.87,158.81,6.29683269]
[1746717828762,1.57387337,158.89,158.82,26.0]
[1746717828959,37.02959185,158.88,158.82,26.0]
[1746717829568,7.86759464,158.89,158.82,26.0]
[1746717829745,1.57387337,158.89,158.82,26.0]
[1746717829944,37.02959185,158.87,158.82,26.0]
[1746717830148,38.60357592,158.86,158.82,26.0]
[1746717830340,37.02959185,158.84,158.8,26.0]
[1746717830541,37.02959185,158.82,158.77,6.29841909]
[1746717830770,37.02959185,158.82,158.71,40.70244956]
[1746717831076,37.02959185,158.81,158.71,40.70244956]
[1746717831573,1.57442455,158.82,158.71,22.0528007]
[1746717831574,37.02959185,158.8,158.71,22.0528007]
[1746717831783,37.02959185,158.79,158.71,22.0528007]
[1746717831979,37.02959185,158.77,158.71,22.0528007]
[1746717832186,37.02959185,158.77,158.71,6.3008002]
[1746717832677,37.02959185,158.77,158.73,6.3000063]
[1746717832866,1.57503193,158.78,158.73,6.3000063]
[1746717833071,20.22469065,158.82,158.73,6.3000063]
[1746717833245,37.02959185,158.79,158.73,6.3000063]
[1746717833445,37.02959185,158.78,158.73,6.3000063]
[1746717833643,20.22469065,158.82,158.73,6.3000063]
[1746717833979,20.22469065,158.82,158.73,22.05002205]
[1746717834159,1.57504179,158.82,158.76,26.0]
[1746717834483,37.02959185,158.81,158.76,26.0]
[1746717834850,37.02959185,158.81,158.77,6.29841909]
[1746717835083,57.2542825,158.82,158.77,6.29841909]
[1746717835257,29.88,158.83,158.77,22.04446683]
[1746717835468,29.88,158.83,158.8,26.0]
[1746717836782,29.88,158.83,158.81,6.29683269]
[1746717838275,29.88,158.83,158.77,15.7452756]
[1746717838276,29.88,158.83,158.79,6.29725771]
[1746717838452,66.90959185,158.83,158.79,32.29725771]
[1746717838654,37.02959185,158.81,158.75,6.29921259]
[1746717838887,37.02959185,158.81,158.75,15.74803149]
[1746717839492,66.90959185,158.83,158.75,41.74803149]
[1746717839654,37.02959185,158.8,158.75,41.74803149]
[1746717839854,37.02959185,158.81,158.75,41.74803149]
[1746717840085,68.48403346,158.83,158.75,41.74803149]
[1746717840567,29.88,158.83,158.75,41.74803149]
[1746717840967,66.90959185,158.83,158.75,48.04724408]
[1746717841166,29.88,158.83,158.75,48.04724408]
[1746717841449,29.88,158.83,158.78,26.0]
[1746717842260,29.04,158.87,158.78,26.0]
[1746717842460,37.02959185,158.86,158.78,26.0]
[1746717842859,37.02959185,158.85,158.79,6.29762579]
[1746717843089,37.02959185,158.82,158.77,6.29841909]
[1746717843473,1.57457686,158.86,158.77,6.29841909]
[1746717843670,37.02959185,158.83,158.77,6.29841909]
[1746717843864,37.02959185,158.81,158.77,6.29841909]
[1746717844068,1.57445864,158.82,158.77,6.29841909]
[1746717844297,1.57460428,158.84,158.77,22.04446683]
[1746717844593,37.02959185,158.82,158.77,6.29841909]
[1746717847204,38.60415363,158.84,158.77,22.04446683]
[1746717847586,38.60415363,158.84,158.77,53.53656231]
[1746717847587,1.57456178,158.84,158.77,53.53656231]
[1746717847789,29.04,158.87,158.77,53.53656231]
[1746717847984,66.06959185,158.87,158.8,26.0]
[1746717848388,38.60373447,158.86,158.8,26.0]
[1746717848700,1.57414262,158.86,158.8,26.0]
[1746717848904,37.02959185,158.86,158.8,26.0]
[1746717849204,66.06959185,158.87,158.81,6.29683269]
[1746717849582,37.02959185,158.86,158.81,6.29683269]
[1746717849797,37.02959185,158.84,158.8,6.29710509]
[1746717850183,66.06959185,158.87,158.8,6.29710509]
[1746717850500,29.04,158.87,158.8,22.04017813]
[1746717850887,29.04,158.87,158.83,26.0]
[1746717851080,29.04,158.87,158.84,6.29564341]
[1746717851799,29.04,158.87,158.84,22.03475194]
[1746717852094,29.04,158.87,158.84,6.29564341]
[1746717852675,29.04,158.87,158.84,22.03475194]
[1746717853604,29.04,158.87,158.86,26.0]
[1746717855382,29.04,158.87,158.86,32.29485081]
[1746717855783,270.7624,158.93,158.86,48.03197784]
[1746717856001,270.7624,158.93,158.86,130.83197784]
[1746717856982,264.36,158.93,158.86,162.3062319]
[1746717857383,264.36,158.93,158.86,167.37619983]
[1746717857595,264.36,158.93,158.86,162.3062319]
[1746717858308,7.7504,158.98,158.9,26.0]
[1746717858486,28.22,159.0,158.9,26.0]
[1746717858679,65.24959185,159.0,158.9,26.0]
[1746717858986,65.24959185,159.0,158.94,26.0]
[1746717859187,28.22,159.0,158.94,26.0]
[1746717859802,65.24959185,159.0,158.94,26.0]
[1746717860107,28.22,159.0,158.94,26.0]
[1746717860604,38.60238998,158.99,158.94,26.0]
[1746717860814,37.02959185,158.97,158.91,6.29287017]
[1746717860986,37.02959185,158.95,158.88,15.73428568]
[1746717861187,1.57335056,158.94,158.88,41.73428568]
[1746717861391,7.86400969,158.97,158.88,41.73428568]
[1746717861708,37.02959185,158.95,158.88,15.73428568]
[1746717861908,1.57336202,158.94,158.88,41.73428568]
[1746717862786,1.57336202,158.94,158.88,48.02834408]
[1746717862987,1.57336202,158.94,158.88,6.2940584]
[1746717863214,1.5027,158.94,158.88,6.2940584]
[1746717863393,37.02959185,158.91,158.88,6.2940584]
[1746717863593,35.36564264,158.92,158.88,6.2940584]
[1746717863789,37.02959185,158.91,158.88,6.2940584]
[1746717864109,72.39523449,158.92,158.88,6.2940584]
[1746717864323,10.14216157,159.0,158.88,6.2940584]
[1746717864324,1.57361767,158.95,158.89,32.6567]
[1746717864526,848.27387629,159.05,158.9,8.50740854]
[1746717864695,1.57288465,159.04,158.94,26.0]
[1746717864890,848.27387629,159.05,158.98,26.0]
[1746717865095,848.27387629,159.05,158.99,9.61265271]
[1746717865510,848.27387629,159.05,159.02,26.0]
[1746717866216,848.27387629,159.05,158.98,26.0]
[1746717866732,848.27387629,159.05,158.99,0.14216157]
[1746717866940,848.27387629,159.05,159.03,26.0]
[1746717867111,848.27387629,159.05,159.03,32.4712]
[1746717867714,848.27387629,159.05,159.04,0.14216157]
[1746717868418,848.27387629,159.05,159.04,29.30732433]
[1746717868799,848.27387629,159.05,159.04,26.14216157]
[1746717869026,848.13177629,159.05,159.04,167.07953678]
[1746717869195,848.13177629,159.05,159.04,176.19385615]
[1746717869606,636.46363053,159.05,159.04,179.31103873]
[1746717869811,636.46363053,159.05,159.04,91.40204572]
[1746717870011,636.46363053,159.05,159.04,63.13083206]
[1746717870219,632.69697095,159.05,159.04,104.15867426]
[1746717870539,632.69697095,159.05,159.04,32.28772635]
[1746717870711,632.69697095,159.05,159.04,91.54420729]
[1746717870909,632.69697095,159.05,159.04,110.19385615]
[1746717871110,631.43996652,159.05,159.04,110.19385615]
[1746717871429,561.53001471,159.05,159.04,129.25982588]
[1746717871732,445.15579181,159.05,159.04,220.96517887]
[1746717871948,430.91579181,159.05,159.04,356.86517887]
[1746717872122,413.533231,159.05,159.04,138.16517887]
[1746717872317,399.293231,159.05,159.04,138.16517887]
[1746717872519,249.40708654,159.05,159.04,129.25982588]
[1746717872712,249.40708654,159.05,159.04,120.14550651]
[1746717872928,249.26498654,159.05,159.04,120.14550651]
[1746717873131,226.77024306,159.05,159.04,119.25982588]
[1746717873317,226.77024306,159.05,159.04,110.00334494]
[1746717873523,226.77024306,159.05,159.04,15.35369608]
[1746717874130,226.77024306,159.05,159.04,6.28772635]
[1746717874351,183.71632566,159.05,159.04,15.40204572]
[1746717874647,183.71632566,159.05,159.04,15.54420729]
[1746717874853,183.71632566,159.05,159.04,92.03715921]
[1746717875020,161.22158218,159.05,159.04,102.03715921]
[1746717875207,161.22158218,159.05,159.04,92.03715921]
[1746717875420,161.22158218,159.05,159.04,73.24534878]
[1746717875610,161.22158218,159.05,159.04,23.24534878]
[1746717875922,161.22158218,159.05,159.04,6.28772635]
[1746717877216,161.22158218,159.05,159.04,6.42988792]
[1746717877451,161.22158218,159.05,159.04,14.27319098]
[1746717877620,161.22158218,159.05,159.04,14.13102941]
[1746717877954,161.22158218,159.05,159.04,6.28772635]
[1746717878813,235.58,159.12,159.07,26.0]
[1746717879053,235.58,159.12,159.11,26.0]
[1746717879243,235.58,159.12,159.08,22.00150866]
[1746717879420,235.58,159.12,159.08,6.28614533]
[1746717879814,37.02959185,159.11,159.08,6.28614533]
[1746717880038,37.02959185,159.1,159.08,6.28614533]
[1746717880234,8.0985,159.08,159.01,15.72209598]
[1746717880552,9.67039819,159.08,159.01,15.72209598]
[1746717880837,8.0985,159.08,159.02,26.0]
[1746717881046,47.02959185,159.2,159.02,26.0]
[1746717881047,241.5501,159.12,159.05,22.00565858]
[1746717881215,241.5501,159.12,159.08,26.0]
[1746717881543,6.5757,159.16,159.11,26.0]
[1746717881839,2.03269558,159.19,159.14,26.0]
[1746717882221,0.36609558,159.19,159.14,26.0]
[1746717882528,0.36609558,159.19,159.18,26.0]
[1746717882929,0.36609558,159.19,159.18,26.14216157]
[1746717883142,0.36609558,159.19,159.18,32.42435782]
[1746717883323,0.36609558,159.19,159.18,58.91730974]
[1746717883637,0.36609558,159.19,159.18,108.91730974]
[1746717884644,0.36609558,159.19,159.18,90.26766088]
[1746717885057,0.11398724,159.19,159.18,108.91730974]
[1746717885217,3.9784246,159.25,159.23,26.0]
[1746717885648,3.9784246,159.25,159.24,26.0]
[1746717885958,3.9784246,159.25,159.24,29.332202]
[1746717886118,3.9784246,159.25,159.24,94.79181043]
[1746717886821,3.9784246,159.25,159.24,26.14216157]
[1746717887044,3.9784246,159.25,159.24,0.14216157]
[1746717887249,3.9784246,159.25,159.24,26.0]
[1746717887821,3.9784246,159.25,159.24,26.14216157]
[1746717888156,3.9784246,159.25,159.24,7.98546463]
[1746717888361,908.92031379,159.26,159.25,79.16681823]
[1746717888649,697.46393305,159.26,159.25,105.02979365]
[1746717888862,671.82990296,159.26,159.25,105.02979365]
[1746717889060,559.22540283,159.26,159.25,105.02979365]
[1746717889228,221.09885035,159.26,159.25,112.45746801]
[1746717889421,0.70847147,159.41,159.39,60.0]
[1746717889629,17.86187138,159.79,159.3,0.37900099]
[1746717889630,880.58241379,159.47,159.46,50.0]
[1746717889837,880.58241379,159.47,159.46,60.0]
[1746717890162,720.66102718,159.47,159.46,67.77515899]
[1746717890450,383.86409263,159.47,159.46,84.43885406]
[1746717890622,376.74409263,159.47,159.46,84.43885406]
[1746717890819,225.18039639,159.47,159.46,85.5855814]
[1746717891059,911.18723912,159.68,159.61,26.0]
[1746717891347,911.18723912,159.68,159.62,10.0]
[1746717891547,911.18723912,159.68,159.67,76.0]
[1746717891717,910.18723912,159.68,159.67,50.0]
[1746717892130,910.04513912,159.68,159.67,50.0]
[1746717892731,910.04513912,159.68,159.65,50.0]
[1746717892934,1145.28513912,159.68,159.63,50.0]
[1746717893130,1145.28513912,159.68,159.53,6.26841346]
[1746717893520,6.6029,159.67,159.48,3.20145191]
[1746717893725,16.6029,159.67,159.54,50.0]
[1746717894034,16.6029,159.67,159.52,50.0]
[1746717894035,6.6029,159.67,159.52,50.0]
[1746717894229,6.6029,159.67,159.51,50.0]
[1746717894438,6.6029,159.67,159.54,76.0]
[1746717894747,6.6029,159.67,159.58,50.0]
[1746717894934,16.6029,159.67,159.56,50.0]
[1746717895124,10.0,159.63,159.49,56.97458689]
[1746717895319,26.0,159.58,159.46,50.0]
[1746717895520,26.0,159.5,159.44,50.0]
[1746717895827,245.12,159.51,159.37,50.0]
[1746717896035,10.0,159.49,159.38,50.0]
[1746717896357,1.56746546,159.49,159.33,21.96698675]
[1746717896555,235.12,159.51,159.35,50.0]
[1746717896962,235.12,159.51,159.37,50.0]
[1746717897126,6.26959247,159.5,159.38,6.27431296]
[1746717897331,37.02959185,159.44,159.34,50.0]
[1746717897535,27.56796641,159.44,159.3,6.2774639]
[1746717897731,10.0,159.42,159.3,6.2774639]
[1746717898130,37.02959185,159.36,159.3,6.2774639]
[1746717898341,10.0,159.45,159.3,6.2774639]
[1746717898632,37.02959185,159.39,159.3,21.97112366]
[1746717898835,27.56847176,159.47,159.3,6.2774639]
[1746717899032,10.0,159.42,159.24,67.23960664]
[1746717899256,6.27352572,159.4,159.25,21.97751839]
[1746717899559,1.56885006,159.39,159.25,6.27943485]
[1746717899744,235.12,159.38,159.25,71.97802197]
[1746717899946,235.12,159.38,159.31,26.0]
[1746717900156,235.12,159.38,159.31,76.0]
[1746717900568,235.12,159.38,159.32,26.0]
[1746717900860,6.6336,159.41,159.34,76.0]
[1746717901072,241.6564,159.49,159.39,26.0]
[1746717901356,241.6564,159.49,159.43,26.0]
[1746717901857,241.6564,159.49,159.4,6.27352572]
[1746717902060,1.56760803,159.48,159.4,6.27352572]
[1746717902259,241.6564,159.49,159.4,6.27352572]
[1746717902460,279.15411097,159.49,159.43,37.49771097]
[1746717902764,235.12,159.49,159.48,63.49771097]
[1746717902952,1.5808,159.52,159.44,50.0]
[1746717903134,37.49771097,159.51,159.42,50.0]
[1746717903334,37.49771097,159.46,159.43,6.27234522]
[1746717903550,37.49771097,159.44,159.41,6.2727927]
[1746717903748,20.21717225,159.51,159.41,6.2727927]
[1746717903749,18.64964886,159.51,159.41,6.2727927]
[1746717903954,37.49771097,159.44,159.41,6.2727927]
[1746717904164,37.49771097,159.42,159.36,6.2751004]
[1746717904368,37.49771097,159.39,159.36,6.2751004]
[1746717904661,18.64964886,159.46,159.36,6.2751004]
[1746717905034,0.14216157,159.45,159.36,6.2751004]
[1746717905234,235.08,159.47,159.4,6.27352572]
[1746717905457,235.08,159.47,159.4,21.95734002]
[1746717905635,235.08,159.47,159.41,26.0]
[1746717906052,235.08,159.47,159.4,71.95734002]
[1746717906053,37.49771097,159.43,159.4,6.27352572]
[1746717906257,235.08,159.47,159.32,15.69134642]
[1746717906258,44.00511097,159.41,159.32,15.69134642]
[1746717906438,6.5074,159.41,159.31,6.27706986]
[1746717906638,37.49771097,159.38,159.33,37.49771097]
[1746717906840,37.49771097,159.39,159.31,6.27706986]
[1746717907156,6.5074,159.41,159.31,21.96974451]
[1746717907362,37.49771097,159.4,159.34,63.49771097]
[1746717907537,6.5074,159.41,159.34,26.0]
[1746717907734,235.08,159.47,159.4,37.49771097]
[1746717907964,235.08,159.47,159.38,26.0]
[1746717908139,235.08,159.47,159.35,50.0]
[1746717908140,37.49771097,159.44,159.35,50.0]
[1746717908344,235.08,159.47,159.37,37.49771097]
[1746717908677,235.08,159.47,159.37,26.0]
[1746717908861,235.08,159.47,159.4,26.0]
[1746717909039,37.49771097,159.44,159.38,37.49771097]
[1746717909364,235.08,159.47,159.42,37.49771097]
[1746717909730,6.5143,159.48,159.46,37.49771097]
[1746717909956,6.5143,159.48,159.44,26.0]
[1746717910141,6.5143,159.48,159.46,37.49771097]
[1746717910336,6.5143,159.48,159.44,26.0]
[1746717910785,14.01753883,159.56,159.47,76.0]
[1746717910961,37.49771097,159.54,159.44,26.0]
[1746717911138,37.49771097,159.47,159.42,26.0]
[1746717911342,37.49771097,159.45,159.43,6.27234522]
[1746717911546,37.49771097,159.44,159.37,6.27470665]
[1746717911743,37.49771097,159.4,159.37,6.27470665]
[1746717911962,1.5094,159.45,159.37,21.96147329]
[1746717912152,18.64964886,159.43,159.32,6.27667587]
[1746717912341,37.49771097,159.39,159.33,37.49771097]
[1746717912661,37.49771097,159.35,159.3,6.2774639]
[1746717912863,18.64964886,159.4,159.3,6.2774639]
[1746717913039,37.49771097,159.31,159.23,21.9807825]
[1746717913241,37.49771097,159.31,159.28,6.27825213]
[1746717913562,37.49771097,159.29,159.25,6.27943485]
[1746717913740,20.21917555,159.34,159.25,6.27943485]
[1746717914167,18.64964886,159.3,159.25,6.27943485]
[1746717914376,7.8226,159.31,159.25,6.27943485]
[1746717914576,37.49771097,159.28,159.25,6.27943485]
[1746717914780,7.8226,159.31,159.25,6.27943485]
[1746717914983,7.8226,159.31,159.25,43.77714582]
[1746717915182,37.49771097,159.29,159.25,6.27943485]
[1746717915350,1.6526,159.41,159.28,37.49771097]
[1746717915677,1.6526,159.41,159.29,50.0]
[1746717915678,37.49771097,159.39,159.29,50.0]
[1746717915885,1.6526,159.41,159.31,26.0]
[1746717916185,37.49771097,159.36,159.3,63.49771097]
[1746717916367,18.64964886,159.4,159.3,26.0]
[1746717916569,18.64964886,159.4,159.32,37.49771097]
[1746717916743,1.6526,159.41,159.33,37.49771097]
[1746717916943,37.49771097,159.36,159.28,26.0]
[1746717917269,1.6526,159.41,159.4,137.62387686]
[1746717917577,39.15031097,159.41,159.4,137.62387686]
[1746717917877,39.29247254,159.41,159.4,123.01715114]
[1746717918166,39.15031097,159.41,159.4,106.35075114]
[1746717918359,10.0,159.45,159.4,106.35075114]
[1746717918558,1.56869583,159.46,159.4,106.35075114]
[1746717918752,37.49771097,159.41,159.4,112.6241155]
[1746717918957,37.49771097,159.41,159.4,106.35075114]
[1746717919163,56.14735983,159.41,159.4,106.35075114]
[1746717919372,0.14216157,159.43,159.4,104.68415114]
[1746717919684,37.49771097,159.41,159.4,104.68415114]
[1746717919858,56.2895214,159.41,159.24,53.37854809]
[1746717920175,10.14216157,159.44,159.33,37.49771097]
[1746717920471,10.14216157,159.44,159.28,50.0]
[1746717920472,1.71072957,159.44,159.32,37.49771097]
[1746717920668,1.71072957,159.44,159.31,26.0]
[1746717920669,18.79181043,159.43,159.31,26.0]
[1746717920877,37.49771097,159.37,159.31,63.49771097]
[1746717921047,1.56869536,159.44,159.33,37.49771097]
[1746717921243,1.56869536,159.44,159.34,37.49771097]
[1746717921470,1.56869536,159.44,159.35,6.27549419]
[1746717921666,37.49771097,159.4,159.35,6.27549419]
[1746717921852,37.49771097,159.37,159.31,37.49771097]
[1746717922062,37.49771097,159.36,159.29,15.69464498]
[1746717922247,20.3602704,159.45,159.35,37.49771097]
[1746717922452,37.49771097,159.41,159.35,37.49771097]
[1746717922664,37.49771097,159.39,159.32,26.0]
[1746717922855,0.14216157,159.42,159.27,6.27864632]
[1746717923048,1.56898716,159.41,159.27,6.27864632]
[1746717923372,37.49771097,159.36,159.31,6.27706986]
[1746717923575,37.49771097,159.35,159.31,6.27706986]
[1746717923757,1.56878028,159.41,159.31,6.27706986]
[1746717923964,1.56878028,159.41,159.32,37.49771097]
[1746717924277,18.64964886,159.47,159.37,37.49771097]
[1746717924466,1.56833307,159.46,159.36,37.49771097]
[1746717924772,24.92049291,159.47,159.36,37.49771097]
[1746717924773,16.5696,159.55,159.42,37.49771097]
[1746717924949,6.26804628,159.54,159.43,26.0]
[1746717925144,6.5696,159.55,159.45,37.49771097]
[1746717925145,37.49771097,159.51,159.45,37.49771097]
[1746717925351,37.49771097,159.48,159.4,21.95734002]
[1746717925577,37.49771097,159.45,159.4,85.45505099]
[1746717925882,18.64964886,159.49,159.4,6.27352572]
[1746717926177,37.49771097,159.41,159.38,6.27431296]
[1746717926377,37.49771097,159.42,159.38,6.27431296]
[1746717926674,7.83756881,159.51,159.41,37.49771097]
[1746717926885,37.49771097,159.46,159.41,26.0]
[1746717927185,1.56818623,159.51,159.38,6.27431296]
[1746717927186,37.49771097,159.42,159.38,6.27431296]
[1746717927554,6.27040247,159.48,159.38,43.77202393]
[1746717927856,235.08,159.52,159.4,26.0]
[1746717928053,37.49771097,159.44,159.39,63.49771097]
[1746717928290,20.21780196,159.51,159.38,6.27431296]
[1746717928291,37.49771097,159.42,159.38,6.27431296]
[1746717928459,20.36016378,159.47,159.36,6.2751004]
[1746717928666,18.64964886,159.5,159.38,37.49771097]
[1746717928860,18.64964886,159.47,159.36,21.9628514]
[1746717929079,1.56848936,159.46,159.36,21.9628514]
[1746717929598,37.49771097,159.41,159.36,59.46056237]
[1746717929893,1.56839348,159.47,159.37,37.49771097]
[1746717930075,37.49771097,159.42,159.36,21.9628514]
[1746717930394,1.56839348,159.47,159.36,21.9628514]
[1746717930395,37.49771097,159.44,159.38,37.49771097]
[1746717930578,1.56839348,159.47,159.38,37.49771097]
[1746717930791,1.56839348,159.47,159.37,26.0]
[1746717930985,20.21780793,159.51,159.41,37.49771097]
[1746717931288,1.71032064,159.51,159.39,26.0]
[1746717931491,235.08,159.52,159.46,37.49771097]
[1746717931705,235.08,159.52,159.49,37.49771097]
[1746717931996,37.49771097,159.5,159.44,63.49771097]
[1746717932173,37.49771097,159.51,159.44,26.0]
[1746717932372,235.08,159.52,159.44,26.0]
[1746717932667,235.08,159.52,159.5,37.49771097]
[1746717932984,241.0485,159.62,159.51,37.49771097]
[1746717933189,235.02,159.62,159.56,37.49771097]
[1746717933390,235.02,159.62,159.54,26.0]
[1746717933693,910.04513912,159.68,159.61,37.49771097]
[1746717933875,37.49771097,159.67,159.58,26.0]
[1746717934087,910.04513912,159.68,159.58,26.0]
[1746717934403,910.04513912,159.68,159.59,37.49771097]
[1746717934576,37.49771097,159.64,159.59,37.49771097]
[1746717934769,910.04513912,159.68,159.59,37.49771097]
[1746717934979,37.49771097,159.62,159.55,6.2676277]
[1746717935296,1.56608918,159.67,159.55,21.93669695]
[1746717935473,910.04513912,159.68,159.62,37.49771097]
[1746717935791,910.04513912,159.68,159.59,6.26605677]
[1746717935792,910.04513912,159.68,159.59,21.93119869]
[1746717935994,910.04513912,159.68,159.59,47.93119869]
[1746717936174,1.56570699,159.67,159.59,69.76376774]
[1746717936364,910.04513912,159.68,159.62,37.49771097]
[1746717936568,910.04513912,159.68,159.61,37.49771097]
[1746717936869,37.49771097,159.62,159.54,37.49771097]
[1746717937091,916.4500416,159.68,159.54,37.49771097]
[1746717937092,1.56653646,159.61,159.54,37.49771097]
[1746717937286,1.56653646,159.66,159.53,15.67047038]
[1746717937489,37.49771097,159.59,159.53,59.43659481]
[1746717937693,1.5666209,159.64,159.55,37.49771097]
[1746717937883,6.26328512,159.67,159.57,37.49771097]
[1746717937884,7.82990602,159.67,159.57,37.49771097]
[1746717938083,910.04513912,159.68,159.61,37.49771097]
[1746717938399,910.04513912,159.68,159.58,26.0]
[1746717938595,910.04513912,159.68,159.55,1.5329]
[1746717938895,20.35804877,159.67,159.55,1.5329]
[1746717939098,20.35804877,159.67,159.55,37.49771097]
[1746717939301,20.35804877,159.67,159.53,53.28095116]
[1746717939302,10.0,159.55,159.42,6.27273867]
[1746717939502,18.64964886,159.52,159.36,6.2751004]
[1746717939802,1.56800949,159.51,159.43,37.49771097]
[1746717939980,0.14216157,159.53,159.45,37.49771097]
[1746717940181,234.88,159.54,159.48,37.49771097]
[1746717940388,234.88,159.54,159.46,26.0]
[1746717940784,234.88,159.54,159.51,37.49771097]
[1746717940986,234.88,159.54,159.46,26.0]
[1746717940987,234.88,159.54,159.47,26.0]
[1746717941198,234.88,159.54,159.53,37.49771097]
[1746717941401,241.14372408,159.65,159.53,37.49771097]
[1746717941581,37.49771097,159.6,159.55,37.49771097]
[1746717941786,234.88,159.65,159.56,37.49771097]
[1746717942082,1.56636392,159.64,159.54,6.26802055]
[1746717942281,18.64964886,159.63,159.54,6.26802055]
[1746717942493,37.49771097,159.55,159.52,6.26880641]
[1746717943083,37.49771097,159.53,159.5,6.26959247]
[1746717943303,1.56688867,159.59,159.48,6.27037873]
[1746717943304,18.79181043,159.58,159.48,6.27037873]
[1746717943496,37.49771097,159.49,159.42,37.49771097]
[1746717943677,37.49771097,159.45,159.41,6.27313217]
[1746717944002,18.79181043,159.5,159.4,56.27343237]
[1746717944302,37.49771097,159.42,159.4,56.27343237]
[1746717944601,1.56813043,159.49,159.4,56.27343237]
[1746717944805,18.79181043,159.5,159.4,56.27343237]
[1746717944806,1.56774605,159.5,159.42,37.49771097]
[1746717944982,37.49771097,159.45,159.4,71.95724667]
[1746717945172,1.56797104,159.5,159.4,71.95724667]
[1746717945377,234.88,159.51,159.45,37.49771097]
[1746717945578,37.49771097,159.47,159.43,6.2722712]
[1746717945778,234.88,159.51,159.43,6.2722712]
[1746717945994,37.49771097,159.47,159.43,6.2722712]
[1746717946207,234.88,159.51,159.44,37.49771097]
[1746717946379,234.88,159.51,159.46,37.49771097]
[1746717946575,8.08464544,159.61,159.5,37.49771097]
[1746717946775,8.08464544,159.61,159.49,26.0]
[1746717947076,1.5668655,159.6,159.51,37.49771097]
[1746717947286,1.5668655,159.6,159.52,37.49771097]
[1746717947487,37.49771097,159.56,159.51,37.49771097]
[1746717947708,8.08464544,159.61,159.54,37.49771097]
[1746717947886,37.49771097,159.59,159.54,37.49771097]
[1746717948077,37.49771097,159.58,159.52,59.43853342]
[1746717948281,8.08464544,159.61,159.53,37.49771097]
[1746717948684,37.49771097,159.58,159.52,59.43853342]
[1746717949009,234.92,159.63,159.55,37.49771097]
[1746717949179,234.92,159.63,159.58,37.49771097]
[1746717949381,234.92,159.63,159.57,37.49771097]
[1746717949607,234.92,159.63,159.56,21.93532212]
[1746717949808,37.49771097,159.62,159.56,59.43303309]
[1746717950099,234.92,159.63,159.57,37.49771097]
[1746717950302,37.49771097,159.6,159.56,6.26723489]
[1746717950474,37.49771097,159.59,159.56,6.26723489]
[1746717950672,37.49771097,159.6,159.56,6.26723489]
[1746717951097,1.56665185,159.62,159.56,6.26723489]
[1746717951279,37.49771097,159.6,159.55,43.76525262]
[1746717952205,234.92,159.63,159.59,37.49771097]
[1746717952506,272.41771097,159.63,159.57,37.49771097]
[1746717952702,37.49771097,159.62,159.57,37.49771097]
[1746717952905,37.49771097,159.61,159.56,37.49771097]